[Event "Live Chess"]
[Site "Chess.com"]
[Date "2024.06.02"]
[Round "-"]
[White "LordBenin"]
[Black "upoe610"]
[Result "0-1"]
[WhiteElo "1246"]
[BlackElo "2188"]
[TimeControl "300"]
[EndTime "23:37:54 PDT"]
[Termination "upoe610 won by checkmate"]

1. d4 {[%clk 0:04:57.8]} 1... Nf6 {[%clk 0:04:57.3]} 2. Nf3 {[%clk 0:04:56.2]}
2... c5 {[%clk 0:04:55.9]} 3. Bf4 {[%clk 0:04:54]} 3... Qb6 {[%clk 0:04:54.3]}
4. dxc5 {[%clk 0:04:46.4]} 4... Qxb2 {[%clk 0:04:51.7]} 5. Qd4 {[%clk
0:04:40.7]} 5... Qxd4 {[%clk 0:04:46.2]} 6. Nxd4 {[%clk 0:04:38.9]} 6... a6
{[%clk 0:04:43.6]} 7. Bg3 {[%clk 0:04:21.7]} 7... Nc6 {[%clk 0:04:42.3]} 8. e3
{[%clk 0:04:19.8]} 8... e6 {[%clk 0:04:29.4]} 9. Be2 {[%clk 0:04:10.9]} 9...
Bxc5 {[%clk 0:04:28]} 10. Nxc6 {[%clk 0:04:02.1]} 10... bxc6 {[%clk 0:04:25.8]}
11. Nd2 {[%clk 0:03:57.9]} 11... Bb4 {[%clk 0:04:22.9]} 12. O-O-O {[%clk
0:03:51]} 12... d6 {[%clk 0:04:21.5]} 13. Nb3 {[%clk 0:03:46.4]} 13... e5 {[%clk
0:04:17.8]} 14. f4 {[%clk 0:03:29.6]} 14... e4 {[%clk 0:04:09.4]} 15. Rhf1
{[%clk 0:03:22]} 15... Be6 {[%clk 0:04:07.6]} 16. Rd4 {[%clk 0:02:53.6]} 16...
a5 {[%clk 0:04:02.6]} 17. f5 {[%clk 0:02:47.8]} 17... Bxb3 {[%clk 0:03:48.8]}
18. axb3 {[%clk 0:02:41.3]} 18... d5 {[%clk 0:03:47.8]} 19. Be5 {[%clk
0:02:29.6]} 19... O-O {[%clk 0:03:44.4]} 20. Bxf6 {[%clk 0:02:27.2]} 20... gxf6
{[%clk 0:03:43.3]} 21. Rf4 {[%clk 0:02:22.6]} 21... Bc3 {[%clk 0:03:41.1]} 22.
Ra4 {[%clk 0:02:18.7]} 22... Kh8 {[%clk 0:03:37.3]} 23. Rg4 {[%clk 0:02:12.5]}
23... Rg8 {[%clk 0:03:36.1]} 24. Rxg8+ {[%clk 0:02:10.5]} 24... Rxg8 {[%clk
0:03:29.6]} 25. g3 {[%clk 0:02:09.1]} 25... Rg5 {[%clk 0:03:25.3]} 26. g4 {[%clk
0:02:06.1]} 26... h5 {[%clk 0:03:24]} 27. h3 {[%clk 0:02:03.8]} 27... hxg4
{[%clk 0:03:22.5]} 28. hxg4 {[%clk 0:02:02.1]} 28... Rg7 {[%clk 0:03:22.4]} 29.
Ba6 {[%clk 0:01:56.8]} 29... Rh7 {[%clk 0:03:17.9]} 30. Kd1 {[%clk 0:01:52.3]}
30... Rh1+ {[%clk 0:03:15.3]} 31. Ke2 {[%clk 0:01:51.2]} 31... Rh2+ {[%clk
0:03:12.4]} 32. Kd1 {[%clk 0:01:48.4]} 32... Rd2+ {[%clk 0:03:10.4]} 33. Ke1
{[%clk 0:01:46.3]} 33... Rxc2+ {[%clk 0:03:09.2]} 34. Kf1 {[%clk 0:01:44.6]}
34... Bb4 {[%clk 0:03:08]} 35. Bb7 {[%clk 0:01:42.5]} 35... d4 {[%clk
0:03:04.4]} 36. exd4 {[%clk 0:01:40.5]} 36... e3 {[%clk 0:03:03.5]} 37. Ra1
{[%clk 0:01:35.8]} 37... e2+ {[%clk 0:03:01.5]} 38. Kf2 {[%clk 0:01:32.2]} 38...
e1=Q+ {[%clk 0:02:59.7]} 39. Kf3 {[%clk 0:01:23.5]} 39... Rf2+ {[%clk
0:02:58.1]} 40. Kg3 {[%clk 0:01:20.7]} 40... Qe3+ {[%clk 0:02:57]} 41. Kh4
{[%clk 0:01:17.8]} 41... Rh2# {[%clk 0:02:56]} 0-1

[Event "Live Chess"]
[Site "Chess.com"]
[Date "2024.06.02"]
[Round "-"]
[White "JanMur7"]
[Black "MagnersCarlsberg2870"]
[Result "0-1"]
[WhiteElo "2268"]
[BlackElo "1825"]
[TimeControl "300"]
[EndTime "23:38:18 PDT"]
[Termination "MagnersCarlsberg2870 won by resignation"]

1. c4 {[%clk 0:04:58.8]} 1... e5 {[%clk 0:04:56.8]} 2. Nc3 {[%clk 0:04:58]} 2...
f5 {[%clk 0:04:55.6]} 3. d4 {[%clk 0:04:55.1]} 3... exd4 {[%clk 0:04:52.4]} 4.
Qxd4 {[%clk 0:04:53]} 4... Nc6 {[%clk 0:04:50.9]} 5. Qd1 {[%clk 0:04:50.3]} 5...
Bb4 {[%clk 0:04:47.5]} 6. g3 {[%clk 0:04:48.2]} 6... Nf6 {[%clk 0:04:44.9]} 7.
Bg2 {[%clk 0:04:47.4]} 7... d6 {[%clk 0:04:40.6]} 8. Nf3 {[%clk 0:04:46.2]} 8...
Ne4 {[%clk 0:04:39.1]} 9. Qb3 {[%clk 0:04:38.1]} 9... Bxc3+ {[%clk 0:04:35.1]}
10. bxc3 {[%clk 0:04:38]} 10... O-O {[%clk 0:04:28.9]} 11. O-O {[%clk
0:04:36.4]} 11... Be6 {[%clk 0:04:26.7]} 12. Qxb7 {[%clk 0:04:30.7]} 12... Na5
{[%clk 0:04:21.2]} 13. Qb4 {[%clk 0:04:28.8]} 13... Nxc4 {[%clk 0:04:18.5]} 14.
Nd4 {[%clk 0:04:27.6]} 14... Qe7 {[%clk 0:04:00.5]} 15. f3 {[%clk 0:04:05.9]}
15... Rfb8 {[%clk 0:03:59]} 16. Nxf5 {[%clk 0:03:43.1]} 16... Qf7 {[%clk
0:03:38.4]} 17. Qa4 {[%clk 0:03:36.4]} 17... Nc5 {[%clk 0:03:28.9]} 18. Nxd6
{[%clk 0:03:10.5]} 18... cxd6 {[%clk 0:03:23.2]} 19. Qc6 {[%clk 0:03:09]} 19...
Bd5 {[%clk 0:03:17.8]} 20. Qxd6 {[%clk 0:02:56.9]} 20... Nxd6 {[%clk 0:03:14.7]}
0-1

[Event "Live Chess"]
[Site "Chess.com"]
[Date "2024.06.02"]
[Round "-"]
[White "JoeyCage"]
[Black "ProfPoisson"]
[Result "1-0"]
[WhiteElo "2397"]
[BlackElo "1286"]
[TimeControl "300"]
[EndTime "23:39:02 PDT"]
[Termination "JoeyCage won by resignation"]

1. e4 {[%clk 0:04:57.3]} 1... e5 {[%clk 0:04:56.2]} 2. Nf3 {[%clk 0:04:56.3]}
2... Nf6 {[%clk 0:04:53.6]} 3. Nxe5 {[%clk 0:04:53.9]} 3... Nxe4 {[%clk
0:04:51.8]} 4. Qe2 {[%clk 0:04:52.1]} 4... Qe7 {[%clk 0:04:50.1]} 5. Qxe4 {[%clk
0:04:50.8]} 5... d6 {[%clk 0:04:49.1]} 6. d4 {[%clk 0:04:50.3]} 6... dxe5 {[%clk
0:04:47.6]} 7. Qxe5 {[%clk 0:04:49.6]} 7... Qxe5+ {[%clk 0:04:45.2]} 8. dxe5
{[%clk 0:04:48.6]} 8... Nc6 {[%clk 0:04:44.4]} 9. Bf4 {[%clk 0:04:46.1]} 9...
Bf5 {[%clk 0:04:42.6]} 10. c3 {[%clk 0:04:44.4]} 10... O-O-O {[%clk 0:04:41.1]}
11. Nd2 {[%clk 0:04:42.9]} 11... g5 {[%clk 0:04:18.1]} 12. Bxg5 {[%clk
0:04:33.7]} 12... Re8 {[%clk 0:04:16.6]} 13. f4 {[%clk 0:04:32.4]} 13... h6
{[%clk 0:04:11.5]} 14. Bf6 {[%clk 0:04:30.7]} 14... Rg8 {[%clk 0:04:09.1]} 15.
O-O-O {[%clk 0:04:28.1]} 15... Bg7 {[%clk 0:03:56.3]} 16. Bxg7 {[%clk
0:04:26.4]} 16... Rxg7 {[%clk 0:03:54]} 17. Nf3 {[%clk 0:04:25.7]} 17... Bg4
{[%clk 0:03:49.8]} 18. Be2 {[%clk 0:04:23.4]} 18... f6 {[%clk 0:03:39]} 19. h3
{[%clk 0:04:20.4]} 19... Bxf3 {[%clk 0:03:35.4]} 20. Bxf3 {[%clk 0:04:19.5]}
20... fxe5 {[%clk 0:03:32.7]} 21. Bxc6 {[%clk 0:04:13.1]} 21... bxc6 {[%clk
0:03:26.4]} 22. fxe5 {[%clk 0:04:12]} 22... Rxe5 {[%clk 0:03:23.5]} 23. Rd2
{[%clk 0:04:09.6]} 23... h5 {[%clk 0:03:08.8]} 24. Rf1 {[%clk 0:04:06.6]} 24...
h4 {[%clk 0:03:02.4]} 25. Rf4 {[%clk 0:04:04.4]} 25... Re1+ {[%clk 0:02:58.1]}
26. Kc2 {[%clk 0:04:02.9]} 26... Rg1 {[%clk 0:02:55.9]} 27. Rxh4 {[%clk
0:03:54.7]} 27... R1xg2 {[%clk 0:02:53.9]} 28. Rxg2 {[%clk 0:03:54.1]} 28...
Rxg2+ {[%clk 0:02:52.2]} 29. Kb3 {[%clk 0:03:54]} 29... Rg5 {[%clk 0:02:44.9]}
30. Rh7 {[%clk 0:03:51]} 30... Kb7 {[%clk 0:02:42.6]} 31. h4 {[%clk 0:03:49.5]}
31... Kb6 {[%clk 0:02:40.9]} 32. hxg5 {[%clk 0:03:47.9]} 1-0

[Event "Live Chess"]
[Site "Chess.com"]
[Date "2024.06.02"]
[Round "-"]
[White "OleksiyJr1"]
[Black "Delacorta"]
[Result "0-1"]
[WhiteElo "1522"]
[BlackElo "1525"]
[TimeControl "300"]
[EndTime "23:39:15 PDT"]
[Termination "Delacorta won by resignation"]

1. e4 {[%clk 0:04:54.8]} 1... e6 {[%clk 0:04:59]} 2. Nf3 {[%clk 0:04:50.5]} 2...
d5 {[%clk 0:04:57.8]} 3. exd5 {[%clk 0:04:49.2]} 3... exd5 {[%clk 0:04:57.7]} 4.
d4 {[%clk 0:04:48.7]} 4... Nf6 {[%clk 0:04:56.8]} 5. Nc3 {[%clk 0:04:45.6]} 5...
c6 {[%clk 0:04:55.2]} 6. Bg5 {[%clk 0:04:42.3]} 6... Bd6 {[%clk 0:04:53.4]} 7.
Bd3 {[%clk 0:04:40.3]} 7... O-O {[%clk 0:04:50.8]} 8. O-O {[%clk 0:04:38.9]}
8... Bg4 {[%clk 0:04:49.5]} 9. h3 {[%clk 0:04:37.2]} 9... Bh5 {[%clk 0:04:48.2]}
10. Be2 {[%clk 0:04:29.2]} 10... Nbd7 {[%clk 0:04:45.4]} 11. Qd3 {[%clk
0:04:22.6]} 11... Qc7 {[%clk 0:04:33.2]} 12. Nh4 {[%clk 0:04:03]} 12... Bxe2
{[%clk 0:04:26.9]} 13. Nxe2 {[%clk 0:03:55.6]} 13... Ne4 {[%clk 0:04:15.1]} 14.
Nf5 {[%clk 0:03:35.8]} 14... Nxg5 {[%clk 0:04:09.8]} 15. Nxd6 {[%clk 0:03:20]}
15... Qxd6 {[%clk 0:04:08.2]} 16. f4 {[%clk 0:03:15.8]} 16... Ne4 {[%clk
0:04:04.1]} 17. Ng3 {[%clk 0:03:08.8]} 17... Ndf6 {[%clk 0:03:57.1]} 18. Nf5
{[%clk 0:03:04.5]} 18... Qd7 {[%clk 0:03:50.1]} 19. g4 {[%clk 0:03:02.6]} 19...
Nd6 {[%clk 0:03:29]} 20. Nxd6 {[%clk 0:02:52.3]} 20... Qxd6 {[%clk 0:03:26.6]}
21. g5 {[%clk 0:02:42.1]} 21... Ne4 {[%clk 0:03:24.3]} 22. h4 {[%clk 0:02:36.1]}
22... f5 {[%clk 0:03:08.8]} 23. h5 {[%clk 0:02:32.8]} 23... g6 {[%clk 0:03:06]}
24. hxg6 {[%clk 0:02:31.5]} 24... hxg6 {[%clk 0:02:55]} 25. Qh3 {[%clk
0:02:25.5]} 25... Rf7 {[%clk 0:02:39.9]} 26. Kg2 {[%clk 0:02:11.3]} 26... Rh7
{[%clk 0:02:38.3]} 27. Qf3 {[%clk 0:02:09.3]} 27... Kf7 {[%clk 0:02:32.2]} 28.
Rh1 {[%clk 0:02:06.9]} 28... Rah8 {[%clk 0:02:29.9]} 29. Qb3 {[%clk 0:01:48.1]}
29... Qc7 {[%clk 0:02:05.4]} 30. c4 {[%clk 0:01:30.6]} 30... Rxh1 {[%clk
0:02:03.2]} 31. cxd5 {[%clk 0:00:58.4]} 31... Rxa1 {[%clk 0:01:38.3]} 32. d6+
{[%clk 0:00:55.9]} 32... Ke8 {[%clk 0:01:18.4]} 33. dxc7 {[%clk 0:00:54.4]}
33... Kd7 {[%clk 0:01:17]} 34. Qxb7 {[%clk 0:00:49.8]} 34... Rc8 {[%clk
0:01:02.4]} 35. Qxa7 {[%clk 0:00:34.2]} 35... Rb1 {[%clk 0:00:57.7]} 36. b3
{[%clk 0:00:27.5]} 36... Rb2+ {[%clk 0:00:52.8]} 37. Kf3 {[%clk 0:00:16.2]}
37... Rf2+ {[%clk 0:00:51.3]} 38. Ke3 {[%clk 0:00:14.7]} 38... Rh2 {[%clk
0:00:47.3]} 39. Qa4 {[%clk 0:00:11.9]} 39... Rh3+ {[%clk 0:00:45.7]} 40. Ke2
{[%clk 0:00:10.1]} 40... Nc3+ {[%clk 0:00:42]} 0-1

[Event "Live Chess"]
[Site "Chess.com"]
[Date "2024.06.02"]
[Round "-"]
[White "WilliamofOrange16th"]
[Black "vincents82"]
[Result "0-1"]
[WhiteElo "1970"]
[BlackElo "2019"]
[TimeControl "300"]
[EndTime "23:39:24 PDT"]
[Termination "vincents82 won by resignation"]

1. e4 {[%clk 0:04:56.9]} 1... d5 {[%clk 0:04:54.1]} 2. exd5 {[%clk 0:04:53.4]}
2... Qxd5 {[%clk 0:04:53.1]} 3. Nc3 {[%clk 0:04:52.4]} 3... Qd8 {[%clk
0:04:50.4]} 4. d4 {[%clk 0:04:50.8]} 4... Nf6 {[%clk 0:04:46.6]} 5. Nf3 {[%clk
0:04:49.8]} 5... Bg4 {[%clk 0:04:45.5]} 6. Be2 {[%clk 0:04:46.9]} 6... e6 {[%clk
0:04:44.1]} 7. h3 {[%clk 0:04:45.9]} 7... Bxf3 {[%clk 0:04:43.1]} 8. Bxf3 {[%clk
0:04:45.1]} 8... c6 {[%clk 0:04:42.5]} 9. O-O {[%clk 0:04:43.8]} 9... Nbd7
{[%clk 0:04:41.4]} 10. Re1 {[%clk 0:04:38.4]} 10... Be7 {[%clk 0:04:36.6]} 11.
Ne4 {[%clk 0:04:34]} 11... O-O {[%clk 0:04:34.6]} 12. c3 {[%clk 0:04:32.8]}
12... Nxe4 {[%clk 0:04:33]} 13. Bxe4 {[%clk 0:04:31.7]} 13... Nf6 {[%clk
0:04:32.2]} 14. Bc2 {[%clk 0:04:28.3]} 14... Qc7 {[%clk 0:04:31.4]} 15. Bg5
{[%clk 0:04:26.6]} 15... h6 {[%clk 0:04:29.2]} 16. Bh4 {[%clk 0:04:24.3]} 16...
Rfd8 {[%clk 0:04:25.7]} 17. Qd3 {[%clk 0:04:23.4]} 17... g6 {[%clk 0:04:23.2]}
18. Qf3 {[%clk 0:04:15.5]} 18... Nd5 {[%clk 0:04:17.7]} 19. Bg3 {[%clk
0:04:14.5]} 19... Bd6 {[%clk 0:04:14.5]} 20. Be5 {[%clk 0:04:06.8]} 20... Bxe5
{[%clk 0:04:12.2]} 21. Rxe5 {[%clk 0:04:06.7]} 21... Kg7 {[%clk 0:04:07]} 22.
Rae1 {[%clk 0:04:04.3]} 22... Qe7 {[%clk 0:03:55.3]} 23. a3 {[%clk 0:03:57.6]}
23... Qf6 {[%clk 0:03:53.2]} 24. Qxf6+ {[%clk 0:03:46.2]} 24... Nxf6 {[%clk
0:03:48.3]} 25. g3 {[%clk 0:03:43.8]} 25... Rd5 {[%clk 0:03:45.2]} 26. f4 {[%clk
0:03:38.8]} 26... Rxe5 {[%clk 0:03:42.2]} 27. fxe5 {[%clk 0:03:37.8]} 27... Nd5
{[%clk 0:03:39.1]} 28. Kf2 {[%clk 0:03:35]} 28... Rc8 {[%clk 0:03:37.3]} 29. Ke2
{[%clk 0:03:24.7]} 29... c5 {[%clk 0:03:30]} 30. Kd3 {[%clk 0:03:23.7]} 30...
cxd4 {[%clk 0:03:14.1]} 31. cxd4 {[%clk 0:03:23.6]} 31... b6 {[%clk 0:03:06.8]}
32. Bb3 {[%clk 0:03:17.9]} 32... Rd8 {[%clk 0:02:59.3]} 33. Rc1 {[%clk
0:03:15.2]} 33... Rd7 {[%clk 0:02:52.5]} 34. Bxd5 {[%clk 0:03:08.8]} 34... exd5
{[%clk 0:02:51.6]} 35. Rc6 {[%clk 0:03:05.7]} 35... Kf8 {[%clk 0:02:50.5]} 36.
a4 {[%clk 0:02:59.5]} 36... Ke7 {[%clk 0:02:48.9]} 37. b4 {[%clk 0:02:57.6]}
37... h5 {[%clk 0:02:46.4]} 38. a5 {[%clk 0:02:51.8]} 38... bxa5 {[%clk
0:02:40]} 39. bxa5 {[%clk 0:02:51.7]} 39... Rb7 {[%clk 0:02:38.5]} 40. a6 {[%clk
0:02:37.8]} 40... Rb3+ {[%clk 0:02:35.2]} 41. Kc2 {[%clk 0:02:36.6]} 41... Rxg3
{[%clk 0:02:34.2]} 42. Rc7+ {[%clk 0:02:35.2]} 42... Ke6 {[%clk 0:02:33.6]} 43.
Rxa7 {[%clk 0:02:35]} 43... Rxh3 {[%clk 0:02:31.7]} 44. Rb7 {[%clk 0:02:25]}
44... Ra3 {[%clk 0:02:29.8]} 45. a7 {[%clk 0:02:23.9]} 45... h4 {[%clk
0:02:28.1]} 46. Rb6+ {[%clk 0:02:16.4]} 46... Ke7 {[%clk 0:02:14.8]} 47. Rb7+
{[%clk 0:02:14.2]} 47... Ke6 {[%clk 0:02:14]} 48. Rb6+ {[%clk 0:02:13]} 48...
Kf5 {[%clk 0:02:13.3]} 49. Rf6+ {[%clk 0:02:11.5]} 49... Kg5 {[%clk 0:02:05.7]}
50. Rxf7 {[%clk 0:02:10.5]} 50... h3 {[%clk 0:02:05.1]} 51. e6 {[%clk
0:02:09.2]} 51... h2 {[%clk 0:02:02.9]} 52. Rh7 {[%clk 0:01:55.6]} 52... Rxa7
{[%clk 0:01:59.8]} 53. Rxh2 {[%clk 0:01:52.3]} 53... Ra2+ {[%clk 0:01:58.4]} 54.
Kd3 {[%clk 0:01:48.5]} 54... Rxh2 {[%clk 0:01:57.1]} 55. e7 {[%clk 0:01:48.4]}
55... Rh8 {[%clk 0:01:55.5]} 0-1

[Event "Live Chess"]
[Site "Chess.com"]
[Date "2024.06.02"]
[Round "-"]
[White "Dhaydon19"]
[Black "juniortay"]
[Result "1-0"]
[WhiteElo "2680"]
[BlackElo "2406"]
[TimeControl "300"]
[EndTime "23:40:27 PDT"]
[Termination "Dhaydon19 won on time"]

1. d4 {[%clk 0:04:58.2]} 1... d5 {[%clk 0:04:58.5]} 2. Nf3 {[%clk 0:04:57.3]}
2... c5 {[%clk 0:04:57.5]} 3. c3 {[%clk 0:04:55.9]} 3... e6 {[%clk 0:04:55.1]}
4. g3 {[%clk 0:04:54.5]} 4... Nf6 {[%clk 0:04:53.8]} 5. Bg2 {[%clk 0:04:53.2]}
5... Nc6 {[%clk 0:04:52.8]} 6. O-O {[%clk 0:04:51.7]} 6... Bd6 {[%clk 0:04:52]}
7. dxc5 {[%clk 0:04:49.8]} 7... Bxc5 {[%clk 0:04:51]} 8. Qc2 {[%clk 0:04:49.5]}
8... O-O {[%clk 0:04:47.9]} 9. Nbd2 {[%clk 0:04:48.3]} 9... a6 {[%clk
0:04:45.4]} 10. e4 {[%clk 0:04:47.4]} 10... b5 {[%clk 0:04:36.8]} 11. exd5
{[%clk 0:04:46.2]} 11... Nxd5 {[%clk 0:04:35.8]} 12. Ne4 {[%clk 0:04:44.9]}
12... Be7 {[%clk 0:04:34.3]} 13. Rd1 {[%clk 0:04:44.1]} 13... Bb7 {[%clk
0:04:32.5]} 14. Neg5 {[%clk 0:04:35.7]} 14... g6 {[%clk 0:04:24.4]} 15. h4
{[%clk 0:04:31.8]} 15... Rc8 {[%clk 0:04:21.1]} 16. Qe2 {[%clk 0:04:30]} 16...
Bf6 {[%clk 0:04:05.8]} 17. Ne4 {[%clk 0:04:28.8]} 17... Bg7 {[%clk 0:04:03.3]}
18. Nc5 {[%clk 0:04:27.5]} 18... Qb6 {[%clk 0:04:01.3]} 19. Nd7 {[%clk
0:04:25.8]} 19... Qc7 {[%clk 0:04:00.3]} 20. Nxf8 {[%clk 0:04:24.7]} 20... Rxf8
{[%clk 0:03:59.4]} 21. Ng5 {[%clk 0:04:23.9]} 21... Nce7 {[%clk 0:03:50]} 22.
Be3 {[%clk 0:04:20.4]} 22... Nf5 {[%clk 0:03:46.9]} 23. Bd4 {[%clk 0:04:15.1]}
23... Nxd4 {[%clk 0:03:33]} 24. cxd4 {[%clk 0:04:13.7]} 24... Qb6 {[%clk
0:03:32.9]} 25. Nf3 {[%clk 0:04:11.4]} 25... a5 {[%clk 0:03:23.6]} 26. Rac1
{[%clk 0:04:09.6]} 26... b4 {[%clk 0:03:22.3]} 27. Ne5 {[%clk 0:04:05.6]} 27...
Rd8 {[%clk 0:03:16.7]} 28. Qc4 {[%clk 0:03:54.3]} 28... Bf8 {[%clk 0:03:09.8]}
29. Qe2 {[%clk 0:03:48.3]} 29... a4 {[%clk 0:03:04.8]} 30. Ng4 {[%clk
0:03:43.5]} 30... Bg7 {[%clk 0:03:02.2]} 31. Ne3 {[%clk 0:03:38.8]} 31... Bxd4
{[%clk 0:02:42.1]} 32. Nxd5 {[%clk 0:03:36]} 32... Bxd5 {[%clk 0:02:40.9]} 33.
Bxd5 {[%clk 0:03:33.7]} 33... Rxd5 {[%clk 0:02:39.9]} 34. Kg2 {[%clk 0:03:30.5]}
34... h5 {[%clk 0:02:36.1]} 35. Rc4 {[%clk 0:03:25.4]} 35... e5 {[%clk 0:02:31]}
36. Qf3 {[%clk 0:03:17.3]} 36... Rd6 {[%clk 0:02:24.3]} 37. Qe4 {[%clk
0:03:05.9]} 37... Rf6 {[%clk 0:02:13.9]} 38. f4 {[%clk 0:03:01.9]} 38... Kg7
{[%clk 0:02:11.2]} 39. Rc2 {[%clk 0:02:49.9]} 39... b3 {[%clk 0:02:07.4]} 40.
axb3 {[%clk 0:02:45.9]} 40... axb3 {[%clk 0:02:03.8]} 41. Re2 {[%clk 0:02:43.3]}
41... Rf5 {[%clk 0:01:56.8]} 42. Rd3 {[%clk 0:02:36.2]} 42... Qa7 {[%clk
0:01:42.9]} 43. Rf3 {[%clk 0:02:31.5]} 43... Qa1 {[%clk 0:01:37.3]} 44. Rf1
{[%clk 0:02:30.3]} 44... Qa6 {[%clk 0:01:30.5]} 45. Rd2 {[%clk 0:02:21.9]} 45...
Ba7 {[%clk 0:01:17.9]} 46. Rf3 {[%clk 0:02:11.4]} 46... Qb6 {[%clk 0:01:15.5]}
47. Rd1 {[%clk 0:02:01.7]} 47... exf4 {[%clk 0:01:07.5]} 48. Rxf4 {[%clk
0:01:58.4]} 48... Rxf4 {[%clk 0:01:01.4]} 49. Qxf4 {[%clk 0:01:56.7]} 49... Qc6+
{[%clk 0:01:00.2]} 50. Qf3 {[%clk 0:01:53.2]} 50... Qc2+ {[%clk 0:00:58.3]} 51.
Kh1 {[%clk 0:01:49.4]} 51... Qxb2 {[%clk 0:00:56.5]} 52. Rd7 {[%clk 0:01:44]}
52... Qc1+ {[%clk 0:00:24.3]} 53. Kg2 {[%clk 0:01:42.5]} 53... Qc2+ {[%clk
0:00:18.9]} 54. Kh3 {[%clk 0:01:40.1]} 54... Qc4 {[%clk 0:00:09.8]} 55. Rxa7
{[%clk 0:01:38]} 55... Qe6+ {[%clk 0:00:08.8]} 56. Kg2 {[%clk 0:01:35.9]} 56...
b2 {[%clk 0:00:08.2]} 57. Rb7 {[%clk 0:01:33.2]} 1-0

[Event "Live Chess"]
[Site "Chess.com"]
[Date "2024.06.02"]
[Round "-"]
[White "AlanBstard10"]
[Black "EPotapov05"]
[Result "0-1"]
[WhiteElo "1167"]
[BlackElo "1816"]
[TimeControl "300"]
[EndTime "23:40:28 PDT"]
[Termination "EPotapov05 won by resignation"]

1. b4 {[%clk 0:04:56.2]} 1... e6 {[%clk 0:04:55.9]} 2. Bb2 {[%clk 0:04:55.6]}
2... Nf6 {[%clk 0:04:53.2]} 3. a3 {[%clk 0:04:53]} 3... c6 {[%clk 0:04:51]} 4.
e3 {[%clk 0:04:52.5]} 4... a5 {[%clk 0:04:48.7]} 5. Be2 {[%clk 0:04:51.9]} 5...
axb4 {[%clk 0:04:46.4]} 6. axb4 {[%clk 0:04:51.6]} 6... Rxa1 {[%clk 0:04:44.3]}
7. Bxa1 {[%clk 0:04:51.3]} 7... Bxb4 {[%clk 0:04:42.8]} 8. Bc3 {[%clk 0:04:46]}
8... Bxc3 {[%clk 0:04:41.8]} 9. Nxc3 {[%clk 0:04:45.7]} 9... d5 {[%clk
0:04:39.2]} 10. Nf3 {[%clk 0:04:44.1]} 10... Nbd7 {[%clk 0:04:37.2]} 11. O-O
{[%clk 0:04:42.2]} 11... Qc7 {[%clk 0:04:35.7]} 12. Qa1 {[%clk 0:04:38.4]} 12...
Ne5 {[%clk 0:04:29.7]} 13. Nxe5 {[%clk 0:04:36.3]} 13... Qxe5 {[%clk 0:04:28.6]}
14. Na4 {[%clk 0:04:32.2]} 14... Qxa1 {[%clk 0:04:23.7]} 15. Rxa1 {[%clk
0:04:30.2]} 15... O-O {[%clk 0:04:03.9]} 16. Nb6 {[%clk 0:04:28.7]} 16... Nd7
{[%clk 0:03:57.5]} 17. Nxd7 {[%clk 0:04:21.9]} 17... Bxd7 {[%clk 0:03:55.7]} 18.
Ra7 {[%clk 0:04:21.3]} 18... Rb8 {[%clk 0:03:53.4]} 19. c3 {[%clk 0:04:17.5]}
19... Kf8 {[%clk 0:03:50.8]} 20. Bd1 {[%clk 0:04:14.1]} 20... Ke8 {[%clk
0:03:48.3]} 21. Bc2 {[%clk 0:04:11.3]} 21... Kd8 {[%clk 0:03:46.8]} 22. Bxh7
{[%clk 0:04:09.7]} 22... g6 {[%clk 0:03:44.1]} 23. h4 {[%clk 0:04:02.4]} 23...
Kc7 {[%clk 0:03:39]} 24. g4 {[%clk 0:03:58.6]} 24... Rh8 {[%clk 0:03:32.9]} 25.
Bxg6 {[%clk 0:03:50.9]} 25... fxg6 {[%clk 0:03:31]} 26. h5 {[%clk 0:03:35.8]}
26... gxh5 {[%clk 0:03:29.1]} 27. gxh5 {[%clk 0:03:35.1]} 27... Rxh5 {[%clk
0:03:27.7]} 28. Kf1 {[%clk 0:03:34.7]} 28... e5 {[%clk 0:03:22.2]} 29. Ra4
{[%clk 0:03:29.6]} 29... e4 {[%clk 0:03:19.5]} 30. Ke2 {[%clk 0:03:27.1]} 30...
Bg4+ {[%clk 0:03:17.5]} 31. f3 {[%clk 0:03:18.2]} 31... Bxf3+ {[%clk 0:03:14.7]}
32. Kf2 {[%clk 0:03:17.4]} 32... Rh2+ {[%clk 0:03:11.1]} 33. Kg3 {[%clk
0:03:16.6]} 33... Rxd2 {[%clk 0:03:08.1]} 34. Kf4 {[%clk 0:03:11.3]} 34... Rd3
{[%clk 0:03:06.4]} 0-1